Workbook

Sheet RSI Strategy
A1: Date | B1: Open | C1: High | D1: Low | E1: Close | F1: Volume | G1: Gains | H1: Losses | I1: Avg Gain | J1: Avg Loss | K1: MAR | L1: RSI | M1: LABEL | N1: Signal | O1: Trade | P1: Net Position | Q1: RSI Buy Signal | R1: RSI Sell Signal | S1: Trade Price | T1: Returns | V1: PERFORMANCE METRICS
A2: 2013-01-04 | B2: 754.8 | C2: 758.9 | D2: 749.05 | E2: 751.65 | F2: 981841 | V2: Positive Returns | W2: =SUMIF(T:T,">0") -> 2.16638359
A3: 2013-01-07 | B3: 755 | C3: 759.55 | D3: 746.55 | E3: 751.85 | F3: 1007244 | G3: =IF(E3>E2,E3-E2,0) -> 0.2 | H3: =IF(E3<E2,E2-E3,0) -> 0 | V3: Negative Returns | W3: =SUMIF(T:T,"<0") -> -1.116782188
A4: 2013-01-08 | B4: 751.85 | C4: 752.2 | D4: 733 | E4: 734.85 | F4: 1674588 | G4: =IF(E4>E3,E4-E3,0) -> 0 | H4: =IF(E4<E3,E3-E4,0) -> 17 | V4: Positive Trades | W4: =COUNTIF(T:T,">0") -> 44
A5: 2013-01-09 | B5: 735.5 | C5: 739.4 | D5: 711 | E5: 714.4 | F5: 3237446 | G5: 0 | H5: 20.45 | V5: Negative Trades | W5: =COUNTIF(T:T,"<0") -> 11
A6: 2013-01-10 | B6: 716 | C6: 718.5 | D6: 696.5 | E6: 699.8 | F6: 3024089 | G6: 0 | H6: 14.6 | V6: Hit Ratio | W6: =W4/(W4+W5) -> 0.8
A7: 2013-01-11 | B7: 704 | C7: 720.1 | D7: 700.4 | E7: 714.2 | F7: 2159204 | G7: 14.4 | H7: 0 | V7: Average Returns | W7: =AVERAGE(T:T) -> 0.0005319824644
A8: 2013-01-14 | B8: 732 | C8: 754 | D8: 727 | E8: 750.05 | F8: 4513845 | G8: 35.85 | H8: 0 | V8: Total Returns | W8: =SUM(T:T) -> 1.049601402
A9: 2013-01-15 | B9: 745 | C9: 796.4 | D9: 744.65 | E9: 788.55 | F9: 5455136 | G9: 38.5 | H9: 0
A10: 2013-01-16 | B10: 798.45 | C10: 798.45 | D10: 769.35 | E10: 779.85 | F10: 5163807 | G10: 0 | H10: 8.7 | V10: CALCULATION
A11: 2013-01-17 | B11: 796 | C11: 799.6 | D11: 772.25 | E11: 791.4 | F11: 3972504 | G11: 11.55 | H11: 0 | V11: RSI = 100 - (100 / ( MAR + 1 ) ) | Z11: RSI Overbought | AA11: 70
A12: 2013-01-18 | B12: 800 | C12: 829 | D12: 793 | E12: 802.2 | F12: 3630542 | G12: 10.8 | H12: 0 | Z12: RSI Oversold | AA12: 30
A13: 2013-01-21 | B13: 802.2 | C13: 802.2 | D13: 778.65 | E13: 780.7 | F13: 2577425 | G13: 0 | H13: 21.5 | V13: Oversold <30, Overbought > 70
A14: 2013-01-22 | B14: 792.2 | C14: 792.2 | D14: 770.9 | E14: 779.4 | F14: 2173527 | G14: 0 | H14: 1.3 | V14: MAR = Mean Average Return
A15: 2013-01-23 | B15: 772.25 | C15: 791.95 | D15: 767.9 | E15: 770.65 | F15: 2544752 | G15: 0 | H15: 8.75 | P15: 0 | S15: =E15 -> 770.65 | V15: MAR = Average Gain / Average Loss
A16: 2013-01-24 | B16: 761 | C16: 765 | D16: 744.7 | E16: 757.85 | F16: 3787495 | G16: 0 | H16: 12.8 | I16: =AVERAGE(G3:G16) -> 7.95 | J16: =AVERAGE(H3:H16) -> 7.507142857 | K16: =I16/J16 -> 1.058991437 | L16: =100-(100/(K16+1)) -> 51.43253235 | M16: =IF(L16>RSI_Overbought,"OVERBOUGHT",IF(L16<RSI_Oversold,"OVERSOLD","")) ->  | N16: =IF(L16>RSI_Overbought,"SELL",IF(L16<RSI_Oversold,"BUY",0)) -> 0 | O16: =IF(AND(N16="BUY",P15<>1),"BUY",IF(AND(N16="SELL",P15<>-1),"SELL",0)) -> 0 | P16: =IF(O16="BUY",1,IF(O16="SELL",-1,P15)) -> 0 | Q16: =IF($O16="BUY",$E16,NA()) ->  | R16: =IF($O16="SELL",$E16,NA()) ->  | S16: =IF(O16<>0,E16,S15) -> 770.65 | T16: =IF(O16="BUY",(S16-S15)/S15,IF(O16="SELL",(S15-S16)/S15,0)) -> 0
A17: 2013-01-25 | B17: 757.5 | C17: 765.5 | D17: 741.15 | E17: 756.2 | F17: 1504143 | G17: 0 | H17: 1.65 | I17: =AVERAGE(G4:G17) -> 7.935714286 | J17: =AVERAGE(H4:H17) -> 7.625 | K17: =I17/J17 -> 1.040749415 | L17: =100-(100/(K17+1)) -> 50.99839339 | N17: 0 | O17: =IF(AND(N17="BUY",P16<>1),"BUY",IF(AND(N17="SELL",P16<>-1),"SELL",0)) -> 0 | P17: =IF(O17="BUY",1,IF(O17="SELL",-1,P16)) -> 0 | S17: =IF(O17<>0,E17,S16) -> 770.65 | T17: =IF(O17="BUY",(S17-S16)/S16,IF(O17="SELL",(S16-S17)/S16,0)) -> 0 | V17: RSI BUY/SELL SIGNAL COLUMNS FOR CHARTING
A18: 2013-01-28 | B18: 750 | C18: 759.7 | D18: 740.15 | E18: 743.3 | F18: 2422199 | G18: 0 | H18: 12.9 | I18: 7.935714286 | J18: 7.332142857 | K18: 1.082318558 | L18: 51.97660819 | N18: 0 | O18: 0 | P18: 0 | S18: 770.65 | T18: 0 | V18: This column in yellow is used to chart the RSI buy and sell signals
A19: 2013-01-29 | B19: 749.5 | C19: 757.95 | D19: 727.7 | E19: 741.75 | F19: 3268598 | G19: 0 | H19: 1.55 | I19: 7.935714286 | J19: 5.982142857 | K19: 1.326567164 | L19: 57.01821914 | N19: 0 | O19: 0 | P19: 0 | S19: 770.65 | T19: 0
A20: 2013-01-30 | B20: 734 | C20: 739.8 | D20: 712.15 | E20: 736.2 | F20: 2736663 | G20: 0 | H20: 5.55 | I20: 7.935714286 | J20: 5.335714286 | K20: 1.487282463 | L20: 59.79547901 | N20: 0 | O20: 0 | P20: 0 | S20: 770.65 | T20: 0 | V20: INITIAL RETURN
A21: 2013-01-31 | B21: 734.35 | C21: 762.8 | D21: 720 | E21: 746.15 | F21: 1689006 | G21: 9.95 | H21: 0 | I21: 7.617857143 | J21: 5.335714286 | K21: 1.427710843 | L21: 58.808933 | N21: 0 | O21: 0 | P21: 0 | S21: 770.65 | T21: 0 | V21: Don't count the returns of the very first trade setting up our postion
A22: 2013-02-01 | B22: 755 | C22: 762.65 | D22: 735 | E22: 738.4 | F22: 2369594 | G22: 0 | H22: 7.75 | I22: 5.057142857 | J22: 5.889285714 | K22: 0.8587022438 | L22: 46.19902121 | N22: 0 | O22: 0 | P22: 0 | S22: 770.65 | T22: 0
A23: 2013-02-04 | B23: 744 | C23: 756.9 | D23: 735.5 | E23: 752.95 | F23: 1488838 | G23: 14.55 | H23: 0 | I23: 3.346428571 | J23: 5.889285714 | K23: 0.5682231656 | L23: 36.23356535 | N23: 0 | O23: 0 | P23: 0 | S23: 770.65 | T23: 0 | V23: CLOSE OUT FINAL POSITION
A24: 2013-02-05 | B24: 752.95 | C24: 753.9 | D24: 732.5 | E24: 738.7 | F24: 1358306 | G24: 0 | H24: 14.25 | I24: 3.346428571 | J24: 6.285714286 | K24: 0.5323863636 | L24: 34.74230627 | N24: 0 | O24: 0 | P24: 0 | S24: 770.65 | T24: 0 | V24: At the very bottom in RED we close out the net position for performance measurement
A25: 2013-02-06 | B25: 735 | C25: 735 | D25: 716.6 | E25: 723.5 | F25: 2303559 | G25: 0 | H25: 15.2 | I25: 2.521428571 | J25: 7.371428571 | K25: 0.3420542636 | L25: 25.48736462 | M25: OVERSOLD | N25: BUY | O25: BUY | P25: 1 | Q25: 723.5 | S25: 723.5 | T25: 0
A26: 2013-02-07 | B26: 728 | C26: 732.5 | D26: 721.15 | E26: 729.7 | F26: 79487 | G26: 6.2 | H26: 0 | I26: 2.192857143 | J26: 7.371428571 | K26: 0.2974806202 | L26: 22.92755788 | M26: OVERSOLD | N26: BUY | O26: 0 | P26: 1 | S26: 723.5 | T26: =IF(O26="BUY",(S25-S26)/S25,IF(O26="SELL",(S26-S25)/S25,0)) -> 0
A27: 2013-02-08 | B27: 729 | C27: 734.75 | D27: 708.15 | E27: 724.15 | F27: 2085172 | G27: 0 | H27: 5.55 | I27: 2.192857143 | J27: 6.232142857 | K27: 0.3518624642 | L27: 26.02797796 | M27: OVERSOLD | N27: BUY | O27: 0 | P27: 1 | S27: 723.5 | T27: 0
A28: 2013-02-11 | B28: 725 | C28: 741.95 | D28: 721.05 | E28: 735.15 | F28: 1502947 | G28: 11 | H28: 0 | I28: 2.978571429 | J28: 6.139285714 | K28: 0.4851657941 | L28: 32.66745006 | N28: 0 | O28: 0 | P28: 1 | S28: 723.5 | T28: 0
A29: 2013-02-12 | B29: 739.9 | C29: 743.7 | D29: 728.1 | E29: 732.3 | F29: 1168687 | G29: 0 | H29: 2.85 | I29: 2.978571429 | J29: 5.717857143 | K29: 0.5209244222 | L29: 34.25051335 | N29: 0 | O29: 0 | P29: 1 | S29: 723.5 | T29: 0
A30: 2013-02-13 | B30: 737.95 | C30: 747.95 | D30: 735 | E30: 742.7 | F30: 1206578 | G30: 10.4 | H30: 0 | I30: 3.721428571 | J30: 4.803571429 | K30: 0.7747211896 | L30: 43.65312107 | N30: 0 | O30: 0 | P30: 1 | S30: 723.5 | T30: 0
A31: 2013-02-14 | B31: 750 | C31: 750 | D31: 738.55 | E31: 746.15 | F31: 978241 | G31: 3.45 | H31: 0 | I31: 3.967857143 | J31: 4.685714286 | K31: 0.8467987805 | L31: 45.85224928 | N31: 0 | O31: 0 | P31: 1 | S31: 723.5 | T31: 0
A32: 2013-02-15 | B32: 747.25 | C32: 764.95 | D32: 742.2 | E32: 758.15 | F32: 830245 | G32: 12 | H32: 0 | I32: 4.825 | J32: 3.764285714 | K32: 1.281783681 | L32: 56.17463617 | N32: 0 | O32: 0 | P32: 1 | S32: 723.5 | T32: 0
A33: 2013-02-18 | B33: 764.9 | C33: 767.95 | D33: 752.55 | E33: 758.65 | F33: 1264145 | G33: 0.5 | H33: 0 | I33: 4.860714286 | J33: 3.653571429 | K33: 1.330400782 | L33: 57.08892617 | N33: 0 | O33: 0 | P33: 1 | S33: 723.5 | T33: 0
A34: 2013-02-19 | B34: 760 | C34: 766.95 | D34: 755.5 | E34: 758.8 | F34: 907403 | G34: 0.15 | H34: 0 | I34: 4.871428571 | J34: 3.257142857 | K34: 1.495614035 | L34: 59.92970123 | N34: 0 | O34: 0 | P34: 1 | S34: 723.5 | T34: 0
A35: 2013-02-20 | B35: 754.9 | C35: 759.5 | D35: 745.8 | E35: 750.55 | F35: 1107940 | G35: 0 | H35: 8.25 | I35: 4.160714286 | J35: 3.846428571 | K35: 1.081708449 | L35: 51.96253345 | N35: 0 | O35: 0 | P35: 1 | S35: 723.5 | T35: 0
A36: 2013-02-21 | B36: 757 | C36: 763.7 | D36: 753.8 | E36: 757.25 | F36: 1071730 | G36: 6.7 | H36: 0 | I36: 4.639285714 | J36: 3.292857143 | K36: 1.408893709 | L36: 58.48716794 | N36: 0 | O36: 0 | P36: 1 | S36: 723.5 | T36: 0
A37: 2013-02-22 | B37: 759 | C37: 765 | D37: 751.25 | E37: 762.1 | F37: 926526 | G37: 4.85 | H37: 0 | I37: 3.946428571 | J37: 3.292857143 | K37: 1.198481562 | L37: 54.51406019 | N37: 0 | O37: 0 | P37: 1 | S37: 723.5 | T37: 0
A38: 2013-02-25 | B38: 756 | C38: 770.7 | D38: 752.1 | E38: 765.35 | F38: 2038029 | G38: 3.25 | H38: 0 | I38: 4.178571429 | J38: 2.275 | K38: 1.836734694 | L38: 64.74820144 | N38: 0 | O38: 0 | P38: 1 | S38: 723.5 | T38: 0
A39: 2013-02-26 | B39: 769.8 | C39: 769.8 | D39: 761.25 | E39: 766.25 | F39: 1336492 | G39: 0.9 | H39: 0 | I39: 4.242857143 | J39: 1.189285714 | K39: 3.567567568 | L39: 78.10650888 | M39: OVERBOUGHT | N39: SELL | O39: SELL | P39: -1 | Q39: =IF($O39="BUY",$E39,NA()) ->  | R39: 766.25 | S39: 766.25 | T39: 0.0590877678
A40: 2013-02-27 | B40: 767.1 | C40: 778.55 | D40: 746.15 | E40: 761.8 | F40: 1507967 | G40: 0 | H40: 4.45 | I40: 3.8 | J40: 1.507142857 | K40: 2.521327014 | L40: 71.60161507 | M40: OVERBOUGHT | N40: SELL | O40: 0 | P40: -1 | S40: 766.25 | T40: 0
A41: 2013-02-28 | B41: 762 | C41: 769 | D41: 755 | E41: 763.2 | F41: 2026676 | G41: 1.4 | H41: 0 | I41: 3.9 | J41: 1.110714286 | K41: 3.511254019 | L41: 77.83321454 | M41: OVERBOUGHT | N41: SELL | O41: 0 | P41: -1 | S41: 766.25 | T41: 0
A42: 2013-03-01 | B42: 769 | C42: 774 | D42: 764.15 | E42: 768.75 | F42: 1377371 | G42: 5.55 | H42: 0 | I42: 3.510714286 | J42: 1.110714286 | K42: 3.160771704 | L42: 75.96599691 | M42: OVERBOUGHT | N42: SELL | O42: 0 | P42: -1 | S42: 766.25 | T42: 0
A43: 2013-03-04 | B43: 768 | C43: 770 | D43: 757 | E43: 763.9 | F43: 1026803 | G43: 0 | H43: 4.85 | I43: 3.510714286 | J43: 1.253571429 | K43: 2.800569801 | L43: 73.68815592 | M43: OVERBOUGHT | N43: SELL | O43: 0 | P43: -1 | S43: 766.25 | T43: 0
A44: 2013-03-05 | B44: 765 | C44: 766.95 | D44: 760.15 | E44: 762.6 | F44: 643656 | G44: 0 | H44: 1.3 | I44: 2.767857143 | J44: 1.346428571 | K44: 2.055702918 | L44: 67.27430556 | N44: 0 | O44: 0 | P44: -1 | S44: 766.25 | T44: 0
A45: 2013-03-06 | B45: 767.6 | C45: 770 | D45: 760.3 | E45: 762.7 | F45: 1507870 | G45: 0.1 | H45: 0 | I45: 2.528571429 | J45: 1.346428571 | K45: 1.877984085 | L45: 65.25345622 | N45: 0 | O45: 0 | P45: -1 | S45: 766.25 | T45: 0
A46: 2013-03-07 | B46: 763 | C46: 778.5 | D46: 763 | E46: 768.7 | F46: 1728866 | G46: 6 | H46: 0 | I46: 2.1 | J46: 1.346428571 | K46: 1.559681698 | L46: 60.93264249 | N46: 0 | O46: 0 | P46: -1 | S46: 766.25 | T46: 0
A47: 2013-03-08 | B47: 763.7 | C47: 784.45 | D47: 760 | E47: 780.05 | F47: 2293937 | G47: 11.35 | H47: 0 | I47: 2.875 | J47: 1.346428571 | K47: 2.135278515 | L47: 68.10490694 | N47: 0 | O47: 0 | P47: -1 | S47: 766.25 | T47: 0
A48: 2013-03-11 | B48: 780.05 | C48: 794.9 | D48: 771.95 | E48: 791.6 | F48: 1607015 | G48: 11.55 | H48: 0 | I48: 3.689285714 | J48: 1.346428571 | K48: 2.74005305 | L48: 73.26241135 | M48: OVERBOUGHT | N48: SELL | O48: 0 | P48: -1 | S48: 766.25 | T48: 0
A49: 2013-03-12 | B49: 800 | C49: 800 | D49: 792 | E49: 796.95 | F49: 1255488 | G49: 5.35 | H49: 0 | I49: 4.071428571 | J49: 0.7571428571 | K49: 5.377358491 | L49: 84.31952663 | M49: OVERBOUGHT | N49: SELL | O49: 0 | P49: -1 | S49: 766.25 | T49: 0
A50: 2013-03-13 | B50: 796.95 | C50: 820 | D50: 791.15 | E50: 818 | F50: 3027217 | G50: 21.05 | H50: 0 | I50: 5.096428571 | J50: 0.7571428571 | K50: 6.731132075 | L50: 87.06528371 | M50: OVERBOUGHT | N50: SELL | O50: 0 | P50: -1 | S50: 766.25 | T50: 0
A51: 2013-03-14 | B51: 821.5 | C51: 831.95 | D51: 815.8 | E51: 829 | F51: 1544428 | G51: 11 | H51: 0 | I51: 5.535714286 | J51: 0.7571428571 | K51: 7.311320755 | L51: 87.96821793 | M51: OVERBOUGHT | N51: SELL | O51: 0 | P51: -1 | S51: 766.25 | T51: 0
A52: 2013-03-15 | B52: 834 | C52: 845.9 | D52: 830 | E52: 840.7 | F52: 2087397 | G52: 11.7 | H52: 0 | I52: 6.139285714 | J52: 0.7571428571 | K52: 8.108490566 | L52: 89.02123252 | M52: OVERBOUGHT | N52: SELL | O52: 0 | P52: -1 | S52: 766.25 | T52: 0
A53: 2013-03-18 | B53: 845 | C53: 845 | D53: 820.5 | E53: 825.85 | F53: 1862277 | G53: 0 | H53: 14.85 | I53: 6.075 | J53: 1.817857143 | K53: 3.341846758 | L53: 76.96832579 | M53: OVERBOUGHT | N53: SELL | O53: 0 | P53: -1 | S53: 766.25 | T53: 0
A54: 2013-03-19 | B54: 805.25 | C54: 834.45 | D54: 805.25 | E54: 820.9 | F54: 2358312 | G54: 0 | H54: 4.95 | I54: 6.075 | J54: 1.853571429 | K54: 3.277456647 | L54: 76.62162162 | M54: OVERBOUGHT | N54: SELL | O54: 0 | P54: -1 | S54: 766.25 | T54: 0
A55: 2013-03-20 | B55: 814.9 | C55: 833.8 | D55: 806.15 | E55: 827.6 | F55: 1655055 | G55: 6.7 | H55: 0 | I55: 6.453571429 | J55: 1.853571429 | K55: 3.481695568 | L55: 77.68701634 | M55: OVERBOUGHT | N55: SELL | O55: 0 | P55: -1 | S55: 766.25 | T55: 0
A56: 2013-03-21 | B56: 830 | C56: 833 | D56: 822.1 | E56: 828.65 | F56: 847482 | G56: 1.05 | H56: 0 | I56: 6.132142857 | J56: 1.853571429 | K56: 3.308285164 | L56: 76.78890877 | M56: OVERBOUGHT | N56: SELL | O56: 0 | P56: -1 | S56: 766.25 | T56: 0
A57: 2013-03-22 | B57: 824.1 | C57: 836.8 | D57: 818 | E57: 829.8 | F57: 2758791 | G57: 1.15 | H57: 0 | I57: 6.214285714 | J57: 1.507142857 | K57: 4.123222749 | L57: 80.48103608 | M57: OVERBOUGHT | N57: SELL | O57: 0 | P57: -1 | S57: 766.25 | T57: 0
A58: 2013-03-25 | B58: 830 | C58: 836 | D58: 822.3 | E58: 825.05 | F58: 998903 | G58: 0 | H58: 4.75 | I58: 6.214285714 | J58: 1.753571429 | K58: 3.543788187 | L58: 77.99193187 | M58: OVERBOUGHT | N58: SELL | O58: 0 | P58: -1 | S58: 766.25 | T58: 0
A59: 2013-03-26 | B59: 824 | C59: 829.3 | D59: 808.55 | E59: 811.95 | F59: 1721633 | G59: 0 | H59: 13.1 | I59: 6.207142857 | J59: 2.689285714 | K59: 2.30810093 | L59: 69.77117623 | N59: 0 | O59: 0 | P59: -1 | S59: 766.25 | T59: 0
A60: 2013-03-27 | B60: 808.6 | C60: 816.1 | D60: 797.15 | E60: 800 | F60: 1548580 | G60: 0 | H60: 11.95 | I60: 5.778571429 | J60: 3.542857143 | K60: 1.631048387 | L60: 61.99233716 | N60: 0 | O60: 0 | P60: -1 | S60: 766.25 | T60: 0
A61: 2013-03-28 | B61: 800 | C61: 807.25 | D61: 777.3 | E61: 780.65 | F61: 3541523 | G61: 0 | H61: 19.35 | I61: 4.967857143 | J61: 4.925 | K61: 1.008701958 | L61: 50.2166065 | N61: 0 | O61: 0 | P61: -1 | S61: 766.25 | T61: 0
A62: 2013-03-29 | B62: 786.35 | C62: 809.8 | D62: 782.1 | E62: 807.8 | F62: 2890716 | G62: 27.15 | H62: 0 | I62: 6.082142857 | J62: 4.925 | K62: 1.234952864 | L62: 55.25632706 | N62: 0 | O62: 0 | P62: -1 | S62: 766.25 | T62: 0
A63: 2013-04-01 | B63: 817 | C63: 817 | D63: 799.25 | E63: 803.35 | F63: 1500918 | G63: 0 | H63: 4.45 | I63: 5.7 | J63: 5.242857143 | K63: 1.08719346 | L63: 52.08877285 | N63: 0 | O63: 0 | P63: -1 | S63: 766.25 | T63: 0
A64: 2013-04-02 | B64: 808.9 | C64: 808.9 | D64: 792.15 | E64: 796.05 | F64: 1851183 | G64: 0 | H64: 7.3 | I64: 4.196428571 | J64: 5.764285714 | K64: 0.7280049566 | L64: 42.12979563 | N64: 0 | O64: 0 | P64: -1 | S64: 766.25 | T64: 0
A65: 2013-04-03 | B65: 790 | C65: 809 | D65: 781.15 | E65: 798.05 | F65: 1512279 | G65: 2 | H65: 0 | I65: 3.553571429 | J65: 5.764285714 | K65: 0.6164807931 | L65: 38.13721732 | N65: 0 | O65: 0 | P65: -1 | S65: 766.25 | T65: 0
A66: 2013-04-04 | B66: 796 | C66: 807.5 | D66: 790 | E66: 799.45 | F66: 2247219 | G66: 1.4 | H66: 0 | I66: 2.817857143 | J66: 5.764285714 | K66: 0.4888475836 | L66: 32.83395755 | N66: 0 | O66: 0 | P66: -1 | S66: 766.25 | T66: 0
A67: 2013-04-05 | B67: 802 | C67: 807.9 | D67: 788.25 | E67: 791.6 | F67: 1509006 | G67: 0 | H67: 7.85 | I67: 2.817857143 | J67: 5.264285714 | K67: 0.5352781547 | L67: 34.86522316 | N67: 0 | O67: 0 | P67: -1 | S67: 766.25 | T67: 0
A68: 2013-04-08 | B68: 791 | C68: 800 | D68: 790.1 | E68: 798.1 | F68: 1434941 | G68: =IF(E68>E67,E68-E67,0) -> 6.5 | H68: =IF(E68<E67,E67-E68,0) -> 0 | I68: 3.282142857 | J68: 4.910714286 | K68: 0.6683636364 | L68: 40.06102877 | N68: 0 | O68: 0 | P68: -1 | S68: 766.25 | T68: 0
A69: 2013-04-09 | B69: 800 | C69: 823.8 | D69: 787.25 | E69: 820.85 | F69: 4202458 | G69: 22.75 | H69: 0 | I69: 4.428571429 | J69: 4.910714286 | K69: 0.9018181818 | L69: 47.41873805 | N69: 0 | O69: 0 | P69: -1 | S69: 766.25 | T69: 0
A70: 2013-04-10 | B70: 822 | C70: 834.9 | D70: 819.05 | E70: 821.7 | F70: 2145476 | G70: 0.85 | H70: 0 | I70: 4.414285714 | J70: 4.910714286 | K70: 0.8989090909 | L70: 47.3381846 | N70: 0 | O70: 0 | P70: -1 | S70: 766.25 | T70: 0
A71: 2013-04-11 | B71: 819 | C71: 828 | D71: 811.85 | E71: 815.1 | F71: 1905479 | G71: 0 | H71: 6.6 | I71: 4.332142857 | J71: 5.382142857 | K71: 0.804910418 | L71: 44.59558824 | N71: 0 | O71: 0 | P71: -1 | S71: 766.25 | T71: 0
A72: 2013-04-12 | B72: 810 | C72: 825 | D72: 800.75 | E72: 811.95 | F72: 3473852 | G72: 0 | H72: 3.15 | I72: 4.332142857 | J72: 5.267857143 | K72: 0.8223728814 | L72: 45.1264881 | N72: 0 | O72: 0 | P72: -1 | S72: 766.25 | T72: 0
A73: 2013-04-15 | B73: 825 | C73: 832.65 | D73: 787 | E73: 789.5 | F73: 6008493 | G73: 0 | H73: 22.45 | I73: 4.332142857 | J73: 5.935714286 | K73: 0.729843562 | L73: 42.19130435 | N73: 0 | O73: 0 | P73: -1 | S73: 766.25 | T73: 0
A74: 2013-04-16 | B74: 795 | C74: 799 | D74: 780.25 | E74: 785 | F74: 3553745 | G74: 0 | H74: 4.5 | I74: 4.332142857 | J74: 5.403571429 | K74: 0.8017184402 | L74: 44.49743213 | N74: 0 | O74: 0 | P74: -1 | S74: 766.25 | T74: 0
A75: 2013-04-17 | B75: 789.1 | C75: 793.65 | D75: 781 | E75: 785.95 | F75: 2375558 | G75: 0.95 | H75: 0 | I75: 4.4 | J75: 4.021428571 | K75: 1.094138544 | L75: 52.24766751 | N75: 0 | O75: 0 | P75: -1 | S75: 766.25 | T75: 0
A76: 2013-04-18 | B76: 788.05 | C76: 792 | D76: 777.5 | E76: 780.2 | F76: 2153034 | G76: 0 | H76: 5.75 | I76: 2.460714286 | J76: 4.432142857 | K76: 0.5551974214 | L76: 35.69948187 | N76: 0 | O76: 0 | P76: -1 | S76: 766.25 | T76: 0
A77: 2013-04-19 | B77: 786 | C77: 791 | D77: 780.2 | E77: 785.1 | F77: 1256274 | G77: 4.9 | H77: 0 | I77: 2.810714286 | J77: 4.114285714 | K77: 0.6831597222 | L77: 40.58793192 | N77: 0 | O77: 0 | P77: -1 | S77: 766.25 | T77: 0
A78: 2013-04-22 | B78: 785.95 | C78: 789.9 | D78: 781.05 | E78: 787.3 | F78: 1310617 | G78: 2.2 | H78: 0 | I78: 2.967857143 | J78: 3.592857143 | K78: 0.8260437376 | L78: 45.23679913 | N78: 0 | O78: 0 | P78: -1 | S78: 766.25 | T78: 0
A79: 2013-04-23 | B79: 780 | C79: 783.95 | D79: 765 | E79: 770.3 | F79: 1200191 | G79: 0 | H79: 17 | I79: 2.825 | J79: 4.807142857 | K79: 0.587667162 | L79: 37.01450632 | N79: 0 | O79: 0 | P79: -1 | S79: 766.25 | T79: 0
A80: 2013-04-24 | B80: 775.1 | C80: 775.25 | D80: 755.6 | E80: 759.75 | F80: 2311482 | G80: 0 | H80: 10.55 | I80: 2.725 | J80: 5.560714286 | K80: 0.4900449583 | L80: 32.88793103 | M80: =IF(L80>RSI_Overbought,"OVERBOUGHT",IF(L80<RSI_Oversold,"OVERSOLD","")) ->  | N80: =IF(L80>RSI_Overbought,"SELL",IF(L80<RSI_Oversold,"BUY",0)) -> 0 | O80: 0 | P80: -1 | Q80: =IF($O80="BUY",$E80,NA()) ->  | R80: =IF($O80="SELL",$E80,NA()) ->  | S80: 766.25 | T80: 0
A81: 2013-04-25 | B81: 765 | C81: 772.8 | D81: 762.55 | E81: 765.4 | F81: 1845112 | G81: 5.65 | H81: 0 | I81: =AVERAGE(G68:G81) -> 3.128571429 | J81: =AVERAGE(H68:H81) -> 5 | K81: =I81/J81 -> 0.6257142857 | L81: =100-(100/(K81+1)) -> 38.48857645 | N81: 0 | O81: =IF(AND(N81="BUY",P80<>1),"BUY",IF(AND(N81="SELL",P80<>-1),"SELL",0)) -> 0 | P81: =IF(O81="BUY",1,IF(O81="SELL",-1,P80)) -> -1 | S81: =IF(O81<>0,E81,S80) -> 766.25 | T81: 0
A82: 2013-04-26 | B82: 761.25 | C82: 771.4 | D82: 754.1 | E82: 766.8 | F82: 1208280 | G82: 1.4 | H82: 0 | I82: 2.764285714 | J82: 5 | K82: 0.5528571429 | L82: 35.6025759 | N82: 0 | O82: 0 | P82: -1 | S82: 766.25 | T82: 0
A83: 2013-04-29 | B83: 774.85 | C83: 774.85 | D83: 756.8 | E83: 761 | F83: 1448014 | G83: 0 | H83: 5.8 | I83: 1.139285714 | J83: 5.414285714 | K83: 0.2104221636 | L83: 17.38419619 | M83: OVERSOLD | N83: BUY | O83: BUY | P83: 1 | Q83: 761 | S83: 761 | T83: 0.006851549755
A84: 2013-04-30 | B84: 750 | C84: 768 | D84: 740.15 | E84: 765.75 | F84: 2185615 | G84: 4.75 | H84: 0 | I84: 1.417857143 | J84: 5.414285714 | K84: 0.2618733509 | L84: 20.75274438 | M84: OVERSOLD | N84: BUY | O84: 0 | P84: 1 | S84: 761 | T84: 0
A85: 2013-05-01 | B85: 767.95 | C85: 770.9 | D85: 759.2 | E85: 767.1 | F85: 1290436 | G85: 1.35 | H85: 0 | I85: 1.514285714 | J85: 4.942857143 | K85: 0.3063583815 | L85: 23.45132743 | M85: OVERSOLD | N85: BUY | O85: 0 | P85: 1 | S85: 761 | T85: 0
A86: 2013-05-02 | B86: 757 | C86: 762.6 | D86: 735 | E86: 741.4 | F86: 2133576 | G86: 0 | H86: 25.7 | I86: 1.514285714 | J86: 6.553571429 | K86: 0.2310626703 | L86: 18.76936698 | M86: OVERSOLD | N86: BUY | O86: 0 | P86: 1 | S86: 761 | T86: 0
A87: 2013-05-03 | B87: 760 | C87: 843 | D87: 745 | E87: 770.25 | F87: 1163907 | G87: 28.85 | H87: 0 | I87: 3.575 | J87: 4.95 | K87: 0.7222222222 | L87: 41.93548387 | N87: 0 | O87: 0 | P87: 1 | S87: 761 | T87: 0
A88: 2013-05-06 | B88: 775 | C88: 779 | D88: 753.9 | E88: 756.3 | F88: 675644 | G88: 0 | H88: 13.95 | I88: 3.575 | J88: 5.625 | K88: 0.6355555556 | L88: 38.85869565 | N88: 0 | O88: 0 | P88: 1 | S88: 761 | T88: 0
A89: 2013-05-07 | B89: 757 | C89: 767.95 | D89: 751.1 | E89: 759.45 | F89: 1370038 | G89: 3.15 | H89: 0 | I89: 3.732142857 | J89: 5.625 | K89: 0.6634920635 | L89: 39.88549618 | N89: 0 | O89: 0 | P89: 1 | S89: 761 | T89: 0
A90: 2013-05-08 | B90: 765.1 | C90: 773.2 | D90: 761.45 | E90: 765.6 | F90: 660726 | G90: 6.15 | H90: 0 | I90: 4.171428571 | J90: 5.214285714 | K90: 0.8 | L90: 44.44444444 | N90: 0 | O90: 0 | P90: 1 | S90: 761 | T90: =IF(O90="BUY",(S89-S90)/S89,IF(O90="SELL",(S90-S89)/S89,0)) -> 0
A91: 2013-05-09 | B91: 766 | C91: 777 | D91: 755 | E91: 763.85 | F91: 1013498 | G91: 0 | H91: 1.75 | I91: 3.821428571 | J91: 5.339285714 | K91: 0.7157190635 | L91: 41.71539961 | N91: 0 | O91: 0 | P91: 1 | S91: 761 | T91: 0
A92: 2013-05-10 | B92: 774.95 | C92: 774.95 | D92: 734.1 | E92: 745.75 | F92: 1861025 | G92: 0 | H92: 18.1 | I92: 3.664285714 | J92: 6.632142857 | K92: 0.5525040388 | L92: 35.58792924 | N92: 0 | O92: 0 | P92: 1 | S92: 761 | T92: 0
A93: 2013-05-13 | B93: 746 | C93: 746 | D93: 726.3 | E93: 735.1 | F93: 1599590 | G93: 0 | H93: 10.65 | I93: 3.664285714 | J93: 6.178571429 | K93: 0.5930635838 | L93: 37.22786647 | N93: 0 | O93: 0 | P93: 1 | S93: 761 | T93: 0
A94: 2013-05-14 | B94: 730 | C94: 733 | D94: 716.3 | E94: 721.5 | F94: 1964633 | G94: 0 | H94: 13.6 | I94: 3.664285714 | J94: 6.396428571 | K94: 0.5728643216 | L94: 36.42172524 | N94: 0 | O94: 0 | P94: 1 | S94: 761 | T94: 0
A95: 2013-05-15 | B95: 729 | C95: 732.3 | D95: 716.15 | E95: 730 | F95: 1199046 | G95: 8.5 | H95: 0 | I95: 3.867857143 | J95: 6.396428571 | K95: 0.6046901173 | L95: 37.68267223 | N95: 0 | O95: 0 | P95: 1 | S95: 761 | T95: 0
A96: 2013-05-16 | B96: 710 | C96: 725.9 | D96: 685.25 | E96: 718.7 | F96: 1337546 | G96: 0 | H96: 11.3 | I96: 3.767857143 | J96: 7.203571429 | K96: 0.5230540407 | L96: 34.34244792 | N96: 0 | O96: 0 | P96: 1 | S96: 761 | T96: 0
A97: 2013-05-17 | B97: 725 | C97: 730 | D97: 712.7 | E97: 717.6 | F97: 1442714 | G97: 0 | H97: 1.1 | I97: 3.767857143 | J97: 6.867857143 | K97: 0.5486219449 | L97: 35.42646071 | N97: 0 | O97: 0 | P97: 1 | S97: 761 | T97: 0
A98: 2013-05-20 | B98: 708 | C98: 714 | D98: 691.55 | E98: 699.55 | F98: 1148683 | G98: 0 | H98: 18.05 | I98: 3.428571429 | J98: 8.157142857 | K98: 0.4203152364 | L98: 29.59309494 | M98: OVERSOLD | N98: BUY | O98: 0 | P98: 1 | S98: 761 | T98: 0
A99: 2013-05-21 | B99: 708 | C99: 744.8 | D99: 704.1 | E99: 738 | F99: 1844732 | G99: 38.45 | H99: 0 | I99: 6.078571429 | J99: 8.157142857 | K99: 0.7451838879 | L99: 42.69944807 | N99: 0 | O99: 0 | P99: 1 | S99: 761 | T99: 0
A100: 2013-05-22 | B100: 735 | C100: 749.95 | D100: 727.2 | E100: 741.85 | F100: 3441936 | G100: 3.85 | H100: 0 | I100: 6.353571429 | J100: 6.321428571 | K100: 1.005084746 | L100: 50.12679628 | N100: 0 | O100: 0 | P100: 1 | S100: 761 | T100: 0
A101: 2013-05-23 | B101: 749.8 | C101: 753.5 | D101: 735.5 | E101: 750.8 | F101: 1239687 | G101: 8.95 | H101: 0 | I101: 4.932142857 | J101: 6.321428571 | K101: 0.7802259887 | L101: 43.82735639 | N101: 0 | O101: 0 | P101: 1 | S101: 761 | T101: 0
A102: 2013-05-24 | B102: 748.5 | C102: 752.9 | D102: 738 | E102: 743.05 | F102: 1663830 | G102: 0 | H102: 7.75 | I102: 4.932142857 | J102: 5.878571429 | K102: 0.8390036452 | L102: 45.62272877 | N102: 0 | O102: 0 | P102: 1 | S102: 761 | T102: 0
A103: 2013-05-27 | B103: 743.05 | C103: 751.95 | D103: 734.7 | E103: 739.2 | F103: 1568456 | G103: 0 | H103: 3.85 | I103: 4.707142857 | J103: 6.153571429 | K103: 0.7649448636 | L103: 43.34100625 | N103: 0 | O103: 0 | P103: 1 | S103: 761 | T103: 0
A104: 2013-05-28 | B104: 737.8 | C104: 759.5 | D104: 736.3 | E104: 754.25 | F104: 1384665 | G104: 15.05 | H104: 0 | I104: 5.342857143 | J104: 6.153571429 | K104: 0.868253047 | L104: 46.47406027 | N104: 0 | O104: 0 | P104: 1 | S104: 761 | T104: 0
A105: 2013-05-29 | B105: 760 | C105: 769 | D105: 745.1 | E105: 765.45 | F105: 842217 | G105: 11.2 | H105: 0 | I105: 6.142857143 | J105: 6.028571429 | K105: 1.018957346 | L105: 50.46948357 | N105: 0 | O105: 0 | P105: 1 | S105: 761 | T105: 0
A106: 2013-05-30 | B106: 765.45 | C106: 769.7 | D106: 755.2 | E106: 765.35 | F106: 684105 | G106: 0 | H106: 0.1 | I106: 6.142857143 | J106: 4.742857143 | K106: 1.295180723 | L106: 56.43044619 | N106: 0 | O106: 0 | P106: 1 | S106: 761 | T106: 0
A107: 2013-05-31 | B107: 749.9 | C107: 757.8 | D107: 736 | E107: 753.25 | F107: 867461 | G107: 0 | H107: 12.1 | I107: 6.142857143 | J107: 4.846428571 | K107: 1.267501842 | L107: 55.89860253 | N107: 0 | O107: 0 | P107: 1 | S107: 761 | T107: 0
A108: 2013-06-03 | B108: 754 | C108: 762 | D108: 747 | E108: 750.2 | F108: 1121111 | G108: 0 | H108: 3.05 | I108: 6.142857143 | J108: 4.092857143 | K108: 1.5008726 | L108: 60.01395673 | N108: 0 | O108: 0 | P108: 1 | S108: 761 | T108: 0
A109: 2013-06-04 | B109: 752 | C109: 758.55 | D109: 731 | E109: 733.05 | F109: 2433700 | G109: 0 | H109: 17.15 | I109: 5.535714286 | J109: 5.317857143 | K109: 1.040967092 | L109: 51.00361961 | N109: 0 | O109: 0 | P109: 1 | S109: 761 | T109: 0
A110: 2013-06-05 | B110: 730 | C110: 753 | D110: 730 | E110: 750.5 | F110: 898018 | G110: 17.45 | H110: 0 | I110: 6.782142857 | J110: 4.510714286 | K110: 1.503562945 | L110: 60.056926 | N110: 0 | O110: 0 | P110: 1 | S110: 761 | T110: 0
A111: 2013-06-06 | B111: 761.8 | C111: 763.3 | D111: 751 | E111: 759.1 | F111: 1618512 | G111: 8.6 | H111: 0 | I111: 7.396428571 | J111: 4.432142857 | K111: 1.668815471 | L111: 62.53019324 | N111: 0 | O111: 0 | P111: 1 | S111: 761 | T111: 0
A112: 2013-06-07 | B112: 763.35 | C112: 787.1 | D112: 758 | E112: 781 | F112: 1775246 | G112: 21.9 | H112: 0 | I112: 8.960714286 | J112: 3.142857143 | K112: 2.851136364 | L112: 74.03363824 | M112: OVERBOUGHT | N112: SELL | O112: SELL | P112: -1 | R112: 781 | S112: 781 | T112: 0.02628120894
A113: 2013-06-10 | B113: 756.65 | C113: 777.7 | D113: 756.65 | E113: 766.1 | F113: 1321488 | G113: 0 | H113: 14.9 | I113: 6.214285714 | J113: 4.207142857 | K113: 1.477079796 | L113: 59.62988348 | N113: 0 | O113: 0 | P113: -1 | S113: 781 | T113: 0
A114: 2013-06-11 | B114: 777.1 | C114: 779.95 | D114: 767.3 | E114: 774.8 | F114: 1164408 | G114: 8.7 | H114: 0 | I114: 6.560714286 | J114: 4.207142857 | K114: 1.55942275 | L114: 60.92868988 | N114: 0 | O114: 0 | P114: -1 | S114: 781 | T114: 0
A115: 2013-06-12 | B115: 777 | C115: 784.8 | D115: 763.7 | E115: 775.3 | F115: 764460 | G115: 0.5 | H115: 0 | I115: 5.957142857 | J115: 4.207142857 | K115: 1.415959253 | L115: 58.60857344 | N115: 0 | O115: 0 | P115: -1 | S115: 781 | T115: 0
A116: 2013-06-13 | B116: 775.3 | C116: 788.9 | D116: 772.25 | E116: 783.2 | F116: 1112836 | G116: 7.9 | H116: 0 | I116: 6.521428571 | J116: 3.653571429 | K116: 1.784946237 | L116: 64.09266409 | N116: 0 | O116: 0 | P116: -1 | S116: 781 | T116: 0
A117: 2013-06-14 | B117: 792.9 | C117: 794 | D117: 784.6 | E117: 787.7 | F117: 953714 | G117: 4.5 | H117: 0 | I117: 6.842857143 | J117: 3.378571429 | K117: 2.025369979 | L117: 66.94619147 | N117: 0 | O117: 0 | P117: -1 | S117: 781 | T117: 0
A118: 2013-06-17 | B118: 785 | C118: 786.5 | D118: 773.3 | E118: 778.65 | F118: 734162 | G118: 0 | H118: 9.05 | I118: 5.767857143 | J118: 4.025 | K118: 1.433007986 | L118: 58.89861415 | N118: 0 | O118: 0 | P118: -1 | S118: 781 | T118: 0
A119: 2013-06-18 | B119: 770 | C119: 788.95 | D119: 769.85 | E119: 786.3 | F119: 1479762 | G119: 7.65 | H119: 0 | I119: 5.514285714 | J119: 4.025 | K119: 1.370008873 | L119: 57.80606514 | N119: 0 | O119: 0 | P119: -1 | S119: 781 | T119: 0
A120: 2013-06-19 | B120: 786.3 | C120: 788.5 | D120: 767.7 | E120: 773.45 | F120: 1888755 | G120: 0 | H120: 12.85 | I120: 5.514285714 | J120: 4.935714286 | K120: 1.117221418 | L120: 52.76828435 | N120: 0 | O120: 0 | P120: -1 | S120: 781 | T120: 0
A121: 2013-06-20 | B121: 775.8 | C121: 775.8 | D121: 756.1 | E121: 758.5 | F121: 1018661 | G121: 0 | H121: 14.95 | I121: 5.514285714 | J121: 5.139285714 | K121: 1.072967338 | L121: 51.75997318 | N121: 0 | O121: 0 | P121: -1 | S121: 781 | T121: 0
A122: 2013-06-21 | B122: 758.45 | C122: 767.15 | D122: 757.6 | E122: 764.75 | F122: 576562 | G122: 6.25 | H122: 0 | I122: 5.960714286 | J122: 4.921428571 | K122: 1.211175617 | L122: 54.77518871 | N122: 0 | O122: 0 | P122: -1 | S122: 781 | T122: 0
A123: 2013-06-24 | B123: 765 | C123: 765 | D123: 749 | E123: 753.8 | F123: 1307331 | G123: 0 | H123: 10.95 | I123: 5.960714286 | J123: 4.478571429 | K123: 1.330940989 | L123: 57.09887102 | N123: 0 | O123: 0 | P123: -1 | S123: 781 | T123: 0
A124: 2013-06-25 | B124: 755 | C124: 759.9 | D124: 741.25 | E124: 751 | F124: 1658258 | G124: 0 | H124: 2.8 | I124: 4.714285714 | J124: 4.678571429 | K124: 1.007633588 | L124: 50.19011407 | N124: 0 | O124: 0 | P124: -1 | S124: 781 | T124: 0
A125: 2013-06-26 | B125: 750 | C125: 750 | D125: 725.75 | E125: 732 | F125: 1703872 | G125: 0 | H125: 19 | I125: 4.1 | J125: 6.035714286 | K125: 0.6792899408 | L125: 40.45102185 | N125: 0 | O125: 0 | P125: -1 | S125: 781 | T125: 0
A126: 2013-06-27 | B126: 734.8 | C126: 746 | D126: 730.85 | E126: 743.8 | F126: 1471775 | G126: 11.8 | H126: 0 | I126: 3.378571429 | J126: 6.035714286 | K126: 0.5597633136 | L126: 35.88770865 | N126: 0 | O126: 0 | P126: -1 | S126: 781 | T126: 0
A127: 2013-06-28 | B127: 748.8 | C127: 748.9 | D127: 737.1 | E127: 739 | F127: 1082798 | G127: 0 | H127: 4.8 | I127: 3.378571429 | J127: 5.314285714 | K127: 0.6357526882 | L127: 38.86606409 | N127: 0 | O127: 0 | P127: -1 | S127: 781 | T127: 0
A128: 2013-07-01 | B128: 736.5 | C128: 761.9 | D128: 735.85 | E128: 759.15 | F128: 1380452 | G128: 20.15 | H128: 0 | I128: 4.196428571 | J128: 5.314285714 | K128: 0.7896505376 | L128: 44.12316936 | N128: 0 | O128: 0 | P128: -1 | S128: 781 | T128: 0
A129: 2013-07-02 | B129: 761.4 | C129: 767.4 | D129: 748.95 | E129: 764.6 | F129: 1076467 | G129: 5.45 | H129: 0 | I129: 4.55 | J129: 5.314285714 | K129: 0.8561827957 | L129: 46.12599566 | N129: 0 | O129: 0 | P129: -1 | S129: 781 | T129: 0
A130: 2013-07-03 | B130: 772 | C130: 779 | D130: 769.65 | E130: 776.8 | F130: 1093782 | G130: 12.2 | H130: 0 | I130: 4.857142857 | J130: 5.314285714 | K130: 0.9139784946 | L130: 47.75280899 | N130: 0 | O130: 0 | P130: -1 | S130: 781 | T130: 0
A131: 2013-07-04 | B131: 780 | C131: 784 | D131: 770.75 | E131: 774.45 | F131: 918333 | G131: 0 | H131: 2.35 | I131: 4.535714286 | J131: 5.482142857 | K131: 0.8273615635 | L131: 45.27629234 | N131: 0 | O131: 0 | P131: -1 | S131: 781 | T131: 0
A132: 2013-07-05 | B132: 779.8 | C132: 794 | D132: 779.8 | E132: 791.7 | F132: 1362888 | G132: =IF(E132>E131,E132-E131,0) -> 17.25 | H132: =IF(E132<E131,E131-E132,0) -> 0 | I132: 5.767857143 | J132: 4.835714286 | K132: 1.192762186 | L132: 54.39541933 | N132: 0 | O132: 0 | P132: -1 | S132: 781 | T132: 0
A133: 2013-07-08 | B133: 792 | C133: 792 | D133: 769.55 | E133: 774.65 | F133: 2772943 | G133: 0 | H133: 17.05 | I133: 5.221428571 | J133: 6.053571429 | K133: 0.8625368732 | L133: 46.30978777 | N133: 0 | O133: 0 | P133: -1 | S133: 781 | T133: 0
A134: 2013-07-09 | B134: 778 | C134: 784.7 | D134: 770.25 | E134: 774.65 | F134: 1416921 | G134: 0 | H134: 0 | I134: 5.221428571 | J134: 5.135714286 | K134: 1.016689847 | L134: 50.4137931 | N134: 0 | O134: 0 | P134: -1 | S134: 781 | T134: 0
A135: 2013-07-10 | B135: 771 | C135: 784.9 | D135: 765.25 | E135: 782.1 | F135: 1897768 | G135: 7.45 | H135: 0 | I135: 5.753571429 | J135: 4.067857143 | K135: 1.414398595 | L135: 58.58181818 | N135: 0 | O135: 0 | P135: -1 | S135: 781 | T135: 0
A136: 2013-07-11 | B136: 795 | C136: 838.5 | D136: 795 | E136: 833.65 | F136: 9567726 | G136: 51.55 | H136: 0 | I136: 8.989285714 | J136: 4.067857143 | K136: 2.209833187 | L136: 68.84573304 | N136: 0 | O136: 0 | P136: -1 | S136: 781 | T136: 0
A137: 2013-07-12 | B137: 831.45 | C137: 834.7 | D137: 823.25 | E137: 826.7 | F137: 1513962 | G137: 0 | H137: 6.95 | I137: 8.989285714 | J137: 3.782142857 | K137: 2.376770538 | L137: 70.38590604 | M137: OVERBOUGHT | N137: SELL | O137: 0 | P137: -1 | S137: 781 | T137: 0
A138: 2013-07-15 | B138: 826.7 | C138: 834.55 | D138: 825 | E138: 827.25 | F138: 1171031 | G138: 0.55 | H138: 0 | I138: 9.028571429 | J138: 3.582142857 | K138: 2.520438684 | L138: 71.59444916 | M138: OVERBOUGHT | N138: SELL | O138: 0 | P138: -1 | S138: 781 | T138: 0
A139: 2013-07-16 | B139: 832 | C139: 844.8 | D139: 829.6 | E139: 843 | F139: 1471860 | G139: 15.75 | H139: 0 | I139: 10.15357143 | J139: 2.225 | K139: 4.563402889 | L139: 82.0253895 | M139: OVERBOUGHT | N139: SELL | O139: 0 | P139: -1 | S139: 781 | T139: 0
A140: 2013-07-17 | B140: 843 | C140: 846 | D140: 832.5 | E140: 843.7 | F140: 681441 | G140: 0.7 | H140: 0 | I140: 9.360714286 | J140: 2.225 | K140: 4.2070626 | L140: 80.79531443 | M140: OVERBOUGHT | N140: SELL | O140: 0 | P140: -1 | S140: 781 | T140: 0
A141: 2013-07-18 | B141: 850 | C141: 850 | D141: 835.1 | E141: 839.3 | F141: 947236 | G141: 0 | H141: 4.4 | I141: 9.360714286 | J141: 2.196428571 | K141: 4.261788618 | L141: 80.99505562 | M141: OVERBOUGHT | N141: SELL | O141: 0 | P141: -1 | S141: 781 | T141: 0
A142: 2013-07-19 | B142: 842.4 | C142: 851.6 | D142: 840.4 | E142: 849.25 | F142: 1383245 | G142: 9.95 | H142: 0 | I142: 8.632142857 | J142: 2.196428571 | K142: 3.930081301 | L142: 79.71635884 | M142: OVERBOUGHT | N142: SELL | O142: 0 | P142: -1 | S142: 781 | T142: 0
A143: 2013-07-22 | B143: 855 | C143: 859.8 | D143: 846.2 | E143: 849.15 | F143: 1053301 | G143: 0 | H143: 0.1 | I143: 8.242857143 | J143: 2.203571429 | K143: 3.740680713 | L143: 78.90598291 | M143: OVERBOUGHT | N143: SELL | O143: 0 | P143: -1 | S143: 781 | T143: 0
A144: 2013-07-23 | B144: 851 | C144: 857.95 | D144: 847 | E144: 854.45 | F144: 2179614 | G144: 5.3 | H144: 0 | I144: 7.75 | J144: 2.203571429 | K144: 3.517017828 | L144: 77.86149982 | M144: =IF(L144>RSI_Overbought,"OVERBOUGHT",IF(L144<RSI_Oversold,"OVERSOLD","")) -> OVERBOUGHT | N144: =IF(L144>RSI_Overbought,"SELL",IF(L144<RSI_Oversold,"BUY",0)) -> SELL | O144: 0 | P144: -1 | Q144: =IF($O144="BUY",$E144,NA()) ->  | R144: =IF($O144="SELL",$E144,NA()) ->  | S144: 781 | T144: 0
A145: 2013-07-24 | B145: 855 | C145: 855 | D145: 849 | E145: 850 | F145: 2665952 | G145: 0 | H145: 4.45 | I145: =AVERAGE(G132:G145) -> 7.75 | J145: =AVERAGE(H132:H145) -> 2.353571429 | K145: =I145/J145 -> 3.292867982 | L145: =100-(100/(K145+1)) -> 76.70554966 | M145: OVERBOUGHT | N145: SELL | O145: =IF(AND(N145="BUY",P144<>1),"BUY",IF(AND(N145="SELL",P144<>-1),"SELL",0)) -> 0 | P145: =IF(O145="BUY",1,IF(O145="SELL",-1,P144)) -> -1 | S145: =IF(O145<>0,E145,S144) -> 781 | T145: 0
A146: 2013-07-25 | B146: 849 | C146: 850 | D146: 835 | E146: 839.8 | F146: 641713 | G146: 0 | H146: 10.2 | I146: 6.517857143 | J146: 3.082142857 | K146: 2.114716107 | L146: 67.89434524 | N146: 0 | O146: 0 | P146: -1 | S146: 781 | T146: 0
A147: 2013-07-26 | B147: 843 | C147: 848.45 | D147: 837 | E147: 838.3 | F147: 1413881 | G147: 0 | H147: 1.5 | I147: 6.517857143 | J147: 1.971428571 | K147: 3.30615942 | L147: 76.77745057 | M147: OVERBOUGHT | N147: SELL | O147: 0 | P147: -1 | S147: 781 | T147: 0
A148: 2013-07-29 | B148: 841 | C148: 844.5 | D148: 828.55 | E148: 832.05 | F148: 640776 | G148: 0 | H148: 6.25 | I148: 6.517857143 | J148: 2.417857143 | K148: 2.695716396 | L148: 72.94164668 | M148: OVERBOUGHT | N148: SELL | O148: 0 | P148: -1 | S148: 781 | T148: 0
A149: 2013-07-30 | B149: 836 | C149: 872 | D149: 835.85 | E149: 868.8 | F149: 2791967 | G149: 36.75 | H149: 0 | I149: 8.610714286 | J149: 2.417857143 | K149: 3.561299852 | L149: 78.07642487 | M149: OVERBOUGHT | N149: SELL | O149: 0 | P149: -1 | S149: 781 | T149: 0
A150: 2013-07-31 | B150: 872 | C150: 882.4 | D150: 865.65 | E150: 877.85 | F150: 1456475 | G150: 9.05 | H150: 0 | I150: 5.575 | J150: 2.417857143 | K150: 2.305760709 | L150: 69.74977659 | N150: 0 | O150: 0 | P150: -1 | S150: 781 | T150: 0
A151: 2013-08-01 | B151: 880 | C151: 883.5 | D151: 860.65 | E151: 864.7 | F151: 1218867 | G151: 0 | H151: 13.15 | I151: 5.575 | J151: 2.860714286 | K151: 1.948813983 | L151: 66.08806097 | N151: 0 | O151: 0 | P151: -1 | S151: 781 | T151: 0
A152: 2013-08-02 | B152: 861.15 | C152: 883.7 | D152: 846.1 | E152: 879.85 | F152: 2129993 | G152: 15.15 | H152: 0 | I152: 6.617857143 | J152: 2.860714286 | K152: 2.313358302 | L152: 69.81914092 | N152: 0 | O152: 0 | P152: -1 | S152: 781 | T152: 0
A153: 2013-08-05 | B153: 885 | C153: 885 | D153: 861.4 | E153: 864.5 | F153: 772597 | G153: 0 | H153: 15.35 | I153: 5.492857143 | J153: 3.957142857 | K153: 1.388086643 | L153: 58.12547241 | N153: 0 | O153: 0 | P153: -1 | S153: 781 | T153: 0
A154: 2013-08-06 | B154: 862 | C154: 873 | D154: 854.8 | E154: 858.15 | F154: 2010124 | G154: 0 | H154: 6.35 | I154: 5.442857143 | J154: 4.410714286 | K154: 1.234008097 | L154: 55.23740486 | N154: 0 | O154: 0 | P154: -1 | S154: 781 | T154: =IF(O154="BUY",(S153-S154)/S153,IF(O154="SELL",(S154-S153)/S153,0)) -> 0
A155: 2013-08-07 | B155: 856.9 | C155: 856.9 | D155: 846.2 | E155: 853.45 | F155: 1139046 | G155: 0 | H155: 4.7 | I155: 5.442857143 | J155: 4.432142857 | K155: 1.228041902 | L155: 55.11754069 | N155: 0 | O155: 0 | P155: -1 | S155: 781 | T155: 0
A156: 2013-08-08 | B156: 857 | C156: 862.9 | D156: 838 | E156: 854.4 | F156: 1294953 | G156: 0.95 | H156: 0 | I156: 4.8 | J156: 4.432142857 | K156: 1.082997583 | L156: 51.99226306 | N156: 0 | O156: 0 | P156: -1 | S156: 781 | T156: 0
A157: 2013-08-09 | B157: 857 | C157: 862.55 | D157: 848.8 | E157: 854.1 | F157: 659549 | G157: 0 | H157: 0.3 | I157: 4.8 | J157: 4.446428571 | K157: 1.079518072 | L157: 51.91193511 | N157: 0 | O157: 0 | P157: -1 | S157: 781 | T157: 0
A158: 2013-08-12 | B158: 850.1 | C158: 861 | D158: 844 | E158: 850.2 | F158: 866598 | G158: 0 | H158: 3.9 | I158: 4.421428571 | J158: 4.725 | K158: 0.9357520786 | L158: 48.340492 | N158: 0 | O158: 0 | P158: -1 | S158: 781 | T158: 0
A159: 2013-08-13 | B159: 853 | C159: 875.8 | D159: 850 | E159: 871.1 | F159: 1444458 | G159: 20.9 | H159: 0 | I159: 5.914285714 | J159: 4.407142857 | K159: 1.34197731 | L159: 57.30103806 | N159: 0 | O159: 0 | P159: -1 | S159: 781 | T159: 0
A160: 2013-08-14 | B160: 874 | C160: 880.9 | D160: 867.3 | E160: 872.05 | F160: 1074267 | G160: 0.95 | H160: 0 | I160: 5.982142857 | J160: 3.678571429 | K160: 1.626213592 | L160: 61.92236599 | N160: 0 | O160: 0 | P160: -1 | S160: 781 | T160: 0
A161: 2013-08-15 | B161: 869 | C161: 879.9 | D161: 863 | E161: 868.95 | F161: 873198 | G161: 0 | H161: 3.1 | I161: 5.982142857 | J161: 3.792857143 | K161: 1.577212806 | L161: 61.1983924 | N161: 0 | O161: 0 | P161: -1 | S161: 781 | T161: 0
A162: 2013-08-16 | B162: 860 | C162: 875.45 | D162: 857.05 | E162: 870.4 | F162: 524915 | G162: 1.45 | H162: 0 | I162: 6.085714286 | J162: 3.346428571 | K162: 1.818569904 | L162: 64.52101477 | N162: 0 | O162: 0 | P162: -1 | S162: 781 | T162: 0
A163: 2013-08-19 | B163: 870 | C163: 881.9 | D163: 865 | E163: 870.7 | F163: 1325237 | G163: 0.3 | H163: 0 | I163: 3.482142857 | J163: 3.346428571 | K163: 1.040554963 | L163: 50.99372385 | N163: 0 | O163: 0 | P163: -1 | S163: 781 | T163: 0
A164: 2013-08-20 | B164: 872 | C164: 881.5 | D164: 866.3 | E164: 871.2 | F164: 1189984 | G164: 0.5 | H164: 0 | I164: 2.871428571 | J164: 3.346428571 | K164: 0.8580576307 | L164: 46.18035612 | N164: 0 | O164: 0 | P164: -1 | S164: 781 | T164: 0
A165: 2013-08-21 | B165: 874 | C165: 879 | D165: 860.25 | E165: 876.5 | F165: 2102214 | G165: 5.3 | H165: 0 | I165: 3.25 | J165: 2.407142857 | K165: 1.350148368 | L165: 57.44949495 | N165: 0 | O165: 0 | P165: -1 | S165: 781 | T165: 0
A166: 2013-08-22 | B166: 872.1 | C166: 873 | D166: 851 | E166: 856.05 | F166: 638257 | G166: 0 | H166: 20.45 | I166: 2.167857143 | J166: 3.867857143 | K166: 0.5604801477 | L166: 35.91715976 | N166: 0 | O166: 0 | P166: -1 | S166: 781 | T166: 0
A167: 2013-08-23 | B167: 862.8 | C167: 862.8 | D167: 840.1 | E167: 845.65 | F167: 779285 | G167: 0 | H167: 10.4 | I167: 2.167857143 | J167: 3.514285714 | K167: 0.6168699187 | L167: 38.15210559 | N167: 0 | O167: 0 | P167: -1 | S167: 781 | T167: 0
A168: 2013-08-26 | B168: 840 | C168: 847.7 | D168: 830.2 | E168: 843.75 | F168: 1223937 | G168: 0 | H168: 1.9 | I168: 2.167857143 | J168: 3.196428571 | K168: 0.6782122905 | L168: 40.41278296 | N168: 0 | O168: 0 | P168: -1 | S168: 781 | T168: 0
A169: 2013-08-27 | B169: 842 | C169: 861 | D169: 840 | E169: 858.4 | F169: 1372742 | G169: 14.65 | H169: 0 | I169: 3.214285714 | J169: 2.860714286 | K169: 1.123595506 | L169: 52.91005291 | N169: 0 | O169: 0 | P169: -1 | S169: 781 | T169: 0
A170: 2013-08-28 | B170: 867.5 | C170: 867.5 | D170: 841.5 | E170: 844.1 | F170: 1379400 | G170: 0 | H170: 14.3 | I170: 3.146428571 | J170: 3.882142857 | K170: 0.8104875805 | L170: 44.76626016 | N170: 0 | O170: 0 | P170: -1 | S170: 781 | T170: 0
A171: 2013-08-29 | B171: 850 | C171: 851.5 | D171: 835.1 | E171: 837.3 | F171: 1388985 | G171: 0 | H171: 6.8 | I171: 3.146428571 | J171: 4.346428571 | K171: 0.7239112572 | L171: 41.99237369 | N171: 0 | O171: 0 | P171: -1 | S171: 781 | T171: 0
A172: 2013-08-30 | B172: 838 | C172: 857.5 | D172: 838 | E172: 855.35 | F172: 1143989 | G172: 18.05 | H172: 0 | I172: 4.435714286 | J172: 4.067857143 | K172: 1.090430202 | L172: 52.16295674 | N172: 0 | O172: 0 | P172: -1 | S172: 781 | T172: 0
A173: 2013-09-02 | B173: 858 | C173: 874.9 | D173: 856 | E173: 871.35 | F173: 1242118 | G173: 16 | H173: 0 | I173: 4.085714286 | J173: 4.067857143 | K173: 1.004389816 | L173: 50.10950504 | N173: 0 | O173: 0 | P173: -1 | S173: 781 | T173: 0
A174: 2013-09-03 | B174: 864 | C174: 882.9 | D174: 858.9 | E174: 879.05 | F174: 2094739 | G174: 7.7 | H174: 0 | I174: 4.567857143 | J174: 4.067857143 | K174: 1.122914838 | L174: 52.89495451 | N174: 0 | O174: 0 | P174: -1 | S174: 781 | T174: 0
A175: 2013-09-04 | B175: 882 | C175: 882.5 | D175: 871.35 | E175: 874.7 | F175: 1469079 | G175: 0 | H175: 4.35 | I175: 4.567857143 | J175: 4.157142857 | K175: 1.098797251 | L175: 52.35366353 | N175: 0 | O175: 0 | P175: -1 | S175: 781 | T175: 0
A176: 2013-09-05 | B176: 871.35 | C176: 889 | D176: 870.7 | E176: 879.75 | F176: 1174705 | G176: 5.05 | H176: 0 | I176: 4.825 | J176: 4.157142857 | K176: 1.160652921 | L176: 53.71769384 | N176: 0 | O176: 0 | P176: -1 | S176: 781 | T176: 0
A177: 2013-09-06 | B177: 883 | C177: 899 | D177: 880.3 | E177: 895.35 | F177: 1535519 | G177: 15.6 | H177: 0 | I177: 5.917857143 | J177: 4.157142857 | K177: 1.423539519 | L177: 58.73803616 | N177: 0 | O177: 0 | P177: -1 | S177: 781 | T177: 0
A178: 2013-09-09 | B178: 900 | C178: 919.4 | D178: 899 | E178: 914.8 | F178: 2780197 | G178: 19.45 | H178: 0 | I178: 7.271428571 | J178: 4.157142857 | K178: 1.749140893 | L178: 63.625 | N178: 0 | O178: 0 | P178: -1 | S178: 781 | T178: 0
A179: 2013-09-10 | B179: 908 | C179: 913.45 | D179: 864.5 | E179: 895.4 | F179: 1167132 | G179: 0 | H179: 19.4 | I179: 6.892857143 | J179: 5.542857143 | K179: 1.243556701 | L179: 55.42791499 | N179: 0 | O179: 0 | P179: -1 | S179: 781 | T179: 0
A180: 2013-09-11 | B180: 900.1 | C180: 918.75 | D180: 900.1 | E180: 913.8 | F180: 1503989 | G180: 18.4 | H180: 0 | I180: 8.207142857 | J180: 4.082142857 | K180: 2.010498688 | L180: 66.78291194 | N180: 0 | O180: 0 | P180: -1 | S180: 781 | T180: 0
A181: 2013-09-12 | B181: 917 | C181: 921.9 | D181: 906.7 | E181: 912.25 | F181: 1209554 | G181: 0 | H181: 1.55 | I181: 8.207142857 | J181: 3.45 | K181: 2.378881988 | L181: 70.40441176 | M181: OVERBOUGHT | N181: SELL | O181: 0 | P181: -1 | S181: 781 | T181: 0
A182: 2013-09-13 | B182: 912 | C182: 958 | D182: 910.3 | E182: 953.95 | F182: 2498592 | G182: 41.7 | H182: 0 | I182: 11.18571429 | J182: 3.314285714 | K182: 3.375 | L182: 77.14285714 | M182: OVERBOUGHT | N182: SELL | O182: 0 | P182: -1 | S182: 781 | T182: 0
A183: 2013-09-16 | B183: 956 | C183: 960 | D183: 930 | E183: 935.25 | F183: 2015533 | G183: 0 | H183: 18.7 | I183: 10.13928571 | J183: 4.65 | K183: 2.180491551 | L183: 68.55831925 | N183: 0 | O183: 0 | P183: -1 | S183: 781 | T183: 0
A184: 2013-09-17 | B184: 940 | C184: 945.3 | D184: 927.8 | E184: 931.35 | F184: 1663618 | G184: 0 | H184: 3.9 | I184: 10.13928571 | J184: 3.907142857 | K184: 2.595063985 | L184: 72.1840834 | M184: OVERBOUGHT | N184: SELL | O184: 0 | P184: -1 | S184: 781 | T184: 0
A185: 2013-09-18 | B185: 933.1 | C185: 937.9 | D185: 925 | E185: 931.95 | F185: 1369392 | G185: 0.6 | H185: 0 | I185: 10.18214286 | J185: 3.421428571 | K185: 2.975991649 | L185: 74.84904174 | M185: OVERBOUGHT | N185: SELL | O185: 0 | P185: -1 | S185: 781 | T185: 0
A186: 2013-09-19 | B186: 935 | C186: 941.45 | D186: 922 | E186: 927.6 | F186: 1711645 | G186: 0 | H186: 4.35 | I186: 8.892857143 | J186: 3.732142857 | K186: 2.38277512 | L186: 70.43847242 | M186: OVERBOUGHT | N186: SELL | O186: 0 | P186: -1 | S186: 781 | T186: 0
A187: 2013-09-20 | B187: 925.25 | C187: 930.3 | D187: 914.1 | E187: 919.65 | F187: 1260857 | G187: 0 | H187: 7.95 | I187: 7.75 | J187: 4.3 | K187: 1.802325581 | L187: 64.3153527 | N187: 0 | O187: 0 | P187: -1 | S187: 781 | T187: 0
A188: 2013-09-23 | B188: 925 | C188: 937.25 | D188: 914.9 | E188: 920.35 | F188: 1685097 | G188: 0.7 | H188: 0 | I188: 7.25 | J188: 4.3 | K188: 1.686046512 | L188: 62.77056277 | N188: 0 | O188: 0 | P188: -1 | S188: 781 | T188: 0
A189: 2013-09-24 | B189: 925 | C189: 930 | D189: 915.15 | E189: 926.95 | F189: 3780462 | G189: 6.6 | H189: 0 | I189: 7.721428571 | J189: 3.989285714 | K189: 1.935541629 | L189: 65.9347362 | N189: 0 | O189: 0 | P189: -1 | S189: 781 | T189: 0
A190: 2013-09-25 | B190: 927 | C190: 966 | D190: 922 | E190: 961.6 | F190: 1663078 | G190: 34.65 | H190: 0 | I190: 9.835714286 | J190: 3.989285714 | K190: 2.465532677 | L190: 71.14440713 | M190: OVERBOUGHT | N190: SELL | O190: 0 | P190: -1 | S190: 781 | T190: 0
A191: 2013-09-26 | B191: 966.75 | C191: 975 | D191: 953 | E191: 955.8 | F191: 1070478 | G191: 0 | H191: 5.8 | I191: 8.721428571 | J191: 4.403571429 | K191: 1.98053528 | L191: 66.44897959 | N191: 0 | O191: 0 | P191: -1 | S191: 781 | T191: 0
A192: 2013-09-27 | B192: 950 | C192: 965.95 | D192: 946.15 | E192: 950.25 | F192: 1105832 | G192: 0 | H192: 5.55 | I192: 7.332142857 | J192: 4.8 | K192: 1.527529762 | L192: 60.43567854 | N192: 0 | O192: 0 | P192: -1 | S192: 781 | T192: 0
A193: 2013-09-30 | B193: 950 | C193: 967.9 | D193: 950 | E193: 959.65 | F193: 919480 | G193: 9.4 | H193: 0 | I193: 8.003571429 | J193: 3.414285714 | K193: 2.344142259 | L193: 70.09696591 | M193: OVERBOUGHT | N193: SELL | O193: 0 | P193: -1 | S193: 781 | T193: 0
A194: 2013-10-01 | B194: 960 | C194: 966 | D194: 938.4 | E194: 948.8 | F194: 986470 | G194: 0 | H194: 10.85 | I194: 6.689285714 | J194: 4.189285714 | K194: 1.596760443 | L194: 61.49047932 | N194: 0 | O194: 0 | P194: -1 | S194: 781 | T194: 0
A195: 2013-10-02 | B195: 944.05 | C195: 954.7 | D195: 869 | E195: 942.6 | F195: 1347998 | G195: 0 | H195: 6.2 | I195: 6.689285714 | J195: 4.521428571 | K195: 1.479462875 | L195: 59.66868429 | N195: 0 | O195: 0 | P195: -1 | S195: 781 | T195: 0
A196: 2013-10-03 | B196: 942.6 | C196: 953.95 | D196: 929.05 | E196: 940.9 | F196: 1532685 | G196: =IF(E196>E195,E196-E195,0) -> 0 | H196: =IF(E196<E195,E195-E196,0) -> 1.7 | I196: 3.710714286 | J196: 4.642857143 | K196: 0.7992307692 | L196: 44.4206926 | N196: 0 | O196: 0 | P196: -1 | S196: 781 | T196: 0
A197: 2013-10-04 | B197: 942.65 | C197: 955.8 | D197: 939.1 | E197: 950.7 | F197: 1304451 | G197: 9.8 | H197: 0 | I197: 4.410714286 | J197: 3.307142857 | K197: 1.333693305 | L197: 57.14946784 | N197: 0 | O197: 0 | P197: -1 | S197: 781 | T197: 0
A198: 2013-10-07 | B198: 955.95 | C198: 997.7 | D198: 949.1 | E198: 992.85 | F198: 2675302 | G198: 42.15 | H198: 0 | I198: 7.421428571 | J198: 3.028571429 | K198: 2.450471698 | L198: 71.01845523 | M198: OVERBOUGHT | N198: SELL | O198: 0 | P198: -1 | S198: 781 | T198: 0
A199: 2013-10-08 | B199: 996.9 | C199: 1004 | D199: 982.35 | E199: 986.05 | F199: 1474543 | G199: 0 | H199: 6.8 | I199: 7.378571429 | J199: 3.514285714 | K199: 2.099593496 | L199: 67.73770492 | N199: 0 | O199: 0 | P199: -1 | S199: 781 | T199: 0
A200: 2013-10-09 | B200: 999 | C200: 1011 | D200: 945 | E200: 950.3 | F200: 2858899 | G200: 0 | H200: 35.75 | I200: 7.378571429 | J200: 5.757142857 | K200: 1.281637717 | L200: 56.17183252 | N200: 0 | O200: 0 | P200: -1 | S200: 781 | T200: 0
... 1788 more rows
